bitfinex/quotes_ETHUSD_20230111
["timestamp","ask_amount","ask_price","bid_price","bid_amount"]
[1673438104199,16.28701,1337.2,1337.0,0.30536817]
[1673438104450,14.95701,1337.2,1337.0,0.30536817]
[1673438106359,7.4784,1337.2,1337.0,0.30536817]
[1673438107213,39.3452,1337.3,1337.0,0.30536817]
[1673438107539,39.2792,1337.3,1337.0,0.30536817]
[1673438107841,46.75724,1337.3,1337.0,0.30536817]
[1673438108005,37.08414,1337.3,1337.0,0.30536817]
[1673438109367,2.0,1337.2,1337.0,6.5e-07]
[1673438109609,7.47887,1337.1,1337.0,6.5e-07]
[1673438110311,22.43661,1337.1,1337.0,6.5e-07]
[1673438110515,37.77761,1337.1,1337.0,6.5e-07]
[1673438110732,39.90971,1337.1,1337.0,6.5e-07]
[1673438110988,45.438521,1337.1,1337.0,6.5e-07]
[1673438113125,44.097521,1337.1,1337.0,6.5e-07]
[1673438113584,52.38818164,1337.1,1336.9,5.21e-06]
[1673438113789,52.38818164,1337.1,1336.7,17.92076438]
[1673438113790,7.47999,1336.9,1336.7,17.92076438]
[1673438114005,31.26096,1336.9,1336.7,0.14666438]
[1673438114232,37.043159,1336.9,1336.7,0.04766438]
[1673438114879,1.341,1336.8,1336.7,0.04766438]
[1673438115252,23.78265,1336.8,1336.7,0.04766438]
[1673438116405,28.27565,1336.8,1336.7,0.04766438]
[1673438116615,32.2167339,1336.8,1336.7,0.04766438]
[1673438117931,32.7779339,1336.8,1336.7,0.04766438]
[1673438118087,32.2167339,1336.8,1336.7,0.04766438]
[1673438120880,32.2167339,1336.8,1336.7,1.90389479]
[1673438121251,32.2167339,1336.8,1336.7,0.04766438]
[1673438122336,31.10295085,1336.8,1336.7,0.04766438]
[1673438122509,32.44395085,1336.8,1336.7,0.04766438]
[1673438122862,31.80284866,1336.8,1336.7,0.04766438]
[1673438124854,31.80284866,1336.8,1336.7,1.90396457]
[1673438125063,28.09176476,1336.8,1336.7,1.90396457]
[1673438126947,2.68,1336.8,1336.7,1.90396457]
[1673438127177,7.8917,1336.9,1336.7,1.16066237]
[1673438127485,18.559,1337.0,1336.8,1.11299799]
[1673438127701,18.493,1337.0,1336.8,3.438366]
[1673438127859,10.2597,1337.1,1336.9,1.85630019]
[1673438128072,10.2597,1337.1,1336.8,10.83507141]
[1673438128073,0.5611,1337.1,1336.8,10.83507141]
[1673438128345,82.21658,1337.2,1336.9,2.93945047]
[1673438128509,41.13087064,1337.2,1336.9,1.08350714]
[1673438128711,31.11007064,1337.2,1336.9,1.08350714]
[1673438129373,0.23,1337.1,1336.9,1.08350714]
[1673438129698,19.68092,1337.1,1336.9,1.08350714]
[1673438131350,19.68092,1337.1,1336.8,19.85286581]
[1673438131555,19.68092,1337.1,1336.9,1.8559787]
[1673438132518,27.15997,1337.1,1336.9,1.8559787]
[1673438133149,28.50097,1337.1,1336.9,1.8559787]
[1673438134282,27.15997,1337.1,1336.9,1.8559787]
[1673438141448,27.15997,1337.1,1336.8,19.85286581]
[1673438141853,27.72107,1337.1,1336.9,1.85602528]
[1673438142124,27.72107,1337.1,1336.8,19.85286581]
[1673438142694,27.72107,1337.1,1336.9,1.85602737]
[1673438144765,27.72107,1337.1,1336.9,1.85329605]
[1673438146655,32.41364306,1337.1,1336.9,1.85329605]
[1673438146818,37.5523037,1337.1,1336.8,18.2708]
[1673438147025,14.0,1337.0,1336.8,18.2708]
[1673438147230,22.43997,1336.9,1336.8,18.2708]
[1673438147456,20.46004628,1336.9,1336.8,0.099]
[1673438147694,20.46004628,1336.9,1336.7,1.16066237]
[1673438148449,20.46004628,1336.9,1336.7,2.83437797]
[1673438149141,20.46004628,1336.9,1336.7,1.16066237]
[1673438150223,20.46004628,1336.9,1336.7,2.83437797]
[1673438151335,20.46004628,1336.9,1336.7,1.16066237]
[1673438151712,25.38775091,1336.9,1336.7,0.04766438]
[1673438151889,2.5,1336.8,1336.7,0.04766438]
[1673438152100,9.98055,1336.8,1336.7,0.04766438]
[1673438152499,17.4611,1336.8,1336.7,0.04766438]
[1673438153095,24.94165,1336.8,1336.7,0.04766438]
[1673438156928,14.9611,1336.8,1336.7,0.04766438]
[1673438160313,7.48055,1336.8,1336.7,0.04766438]
[1673438161795,27.99578463,1336.9,1336.7,0.04766438]
[1673438161954,27.92978463,1336.9,1336.7,0.04766438]
[1673438162637,26.81604941,1336.9,1336.7,0.04766438]
[1673438163421,20.14270494,1336.8,1336.7,0.04766438]
[1673438163632,12.89215494,1336.8,1336.7,0.04766438]
[1673438163888,5.41160494,1336.8,1336.7,0.04766438]
[1673438164710,5.41160494,1336.8,1336.7,1.90394788]
[1673438165642,12.89215494,1336.8,1336.7,0.04766438]
[1673438165990,27.85325494,1336.8,1336.7,0.04766438]
[1673438166417,32.34625494,1336.8,1336.7,0.04766438]
[1673438169281,33.00625494,1336.8,1336.7,0.04766438]
[1673438172937,47.00625494,1336.8,1336.7,0.04766438]
[1673438173116,48.34725494,1336.8,1336.7,0.04766438]
[1673438174006,52.14491558,1336.8,1336.7,0.04766438]
[1673438174413,50.80391558,1336.8,1336.7,0.04766438]
[1673438183207,43.32336558,1336.8,1336.7,0.04766438]
[1673438183450,50.80391558,1336.8,1336.7,0.04766438]
[1673438185216,50.80391558,1336.8,1336.7,0.04436283]
[1673438185417,48.30391558,1336.8,1336.7,0.04436283]
[1673438186505,49.98891558,1336.8,1336.7,0.04436283]
[1673438187835,48.30391558,1336.8,1336.7,0.04436283]
[1673438188573,48.30391558,1336.8,1336.7,1.20436283]
[1673438188574,14.66,1336.8,1336.7,1.20436283]
[1673438189035,14.66,1336.8,1336.7,3.06074479]
[1673438189566,0.34600001,1336.8,1336.7,3.06074479]
[1673438190254,0.3432492,1336.8,1336.7,3.06074479]
[1673438191315,0.3432492,1336.8,1336.7,1.90074479]
[1673438191880,7.8237992,1336.8,1336.7,1.90074479]
[1673438198164,15.3043492,1336.8,1336.7,1.90074479]
[1673438199081,7.8237992,1336.8,1336.7,1.90074479]
[1673438199552,0.3432492,1336.8,1336.7,1.90074479]
[1673438199871,0.9044492,1336.8,1336.7,1.90074479]
[1673438200240,0.3432492,1336.8,1336.7,1.90074479]
[1673438202123,0.3432492,1336.8,1336.7,3.77552445]
[1673438202333,1e-08,1336.8,1336.7,3.77552445]
[1673438202585,0.19200001,1336.8,1336.7,3.77552445]
[1673438207969,0.19200001,1336.8,1336.7,5.44924005]
[1673438208149,0.19200001,1336.8,1336.7,5.54824005]
[1673438208967,0.19200001,1336.8,1336.7,3.87452445]
[1673438209335,0.19200001,1336.8,1336.7,5.44924005]
[1673438209511,1e-08,1336.8,1336.7,3.87452445]
[1673438209728,0.11400001,1336.8,1336.7,3.77552445]
[1673438210895,7.59455001,1336.8,1336.7,3.77552445]
[1673438211127,7.59455001,1336.8,1336.7,3.01374278]
[1673438212222,22.55565001,1336.8,1336.7,1.90074479]
[1673438214223,15.07510001,1336.8,1336.7,1.90074479]
[1673438215275,7.59455001,1336.8,1336.7,1.90074479]
[1673438215907,0.11400001,1336.8,1336.7,1.90074479]
[1673438219234,0.11400001,1336.8,1336.7,3.01374278]
[1673438225166,0.11400001,1336.8,1336.7,4.74698186]
[1673438227189,0.11400001,1336.8,1336.7,3.01374278]
[1673438229617,1e-08,1336.8,1336.7,3.01374278]
[1673438235510,7.48055001,1336.8,1336.7,3.01374278]
[1673438241201,1e-08,1336.8,1336.7,3.01374278]
[1673438242581,15.19045,1336.9,1336.8,0.00199999]
[1673438242788,19.22086203,1336.9,1336.8,0.00199999]
[1673438244362,26.70131203,1336.9,1336.8,0.00199999]
[1673438246136,28.93973407,1336.9,1336.8,0.00199999]
[1673438246563,26.70131203,1336.9,1336.8,0.00199999]
[1673438247898,34.99197267,1336.9,1336.8,0.00199999]
[1673438248680,37.23039471,1336.9,1336.8,0.00199999]
[1673438249538,34.99197267,1336.9,1336.8,0.00199999]
[1673438251030,37.23039471,1336.9,1336.8,0.00199999]
[1673438252766,37.23239471,1336.9,1336.8,0.00199999]
[1673438252976,37.23039471,1336.9,1336.8,0.00199999]
[1673438255349,51.23039471,1336.9,1336.8,0.00199999]
[1673438256515,55.697923,1336.9,1336.8,0.00199999]
[1673438259174,52.90239471,1336.9,1336.8,0.00199999]
[1673438261133,55.697923,1336.9,1336.8,0.00199999]
[1673438265230,52.90239471,1336.9,1336.8,0.00199999]
[1673438265602,59.48476222,1336.9,1336.8,0.00199999]
[1673438266658,8.1825187,1336.8,1336.7,0.04436283]
[1673438266894,18.52760743,1336.8,1336.7,0.04436283]
[1673438267237,40.96925743,1336.8,1336.7,0.04436283]
[1673438267437,38.46925743,1336.8,1336.7,0.04436283]
[1673438269106,23.50815743,1336.8,1336.7,0.04436283]
[1673438269285,17.19072934,1336.8,1336.7,0.04436283]
[1673438270879,8.52217934,1336.8,1336.7,0.04436283]
[1673438271533,16.00272934,1336.8,1336.7,0.04436283]
[1673438271921,30.00272934,1336.8,1336.7,0.04436283]
[1673438272127,22.52217934,1336.8,1336.7,0.04436283]
[1673438273689,22.52066064,1336.8,1336.7,0.04436283]
[1673438276808,30.00121064,1336.8,1336.7,0.04436283]
[1673438277189,37.48176064,1336.8,1336.7,0.04436283]
[1673438277399,30.00121064,1336.8,1336.7,0.04436283]
[1673438277717,22.52066064,1336.8,1336.7,0.04436283]
[1673438277927,37.48176064,1336.8,1336.7,0.04436283]
[1673438279140,30.00121064,1336.8,1336.7,0.04436283]
[1673438279651,37.48176064,1336.8,1336.7,0.04436283]
[1673438279872,30.00121064,1336.8,1336.7,0.04436283]
[1673438280176,37.48176064,1336.8,1336.7,0.04436283]
[1673438280556,30.00121064,1336.8,1336.7,0.04436283]
[1673438281081,37.48176064,1336.8,1336.7,0.04436283]
[1673438281288,30.00121064,1336.8,1336.7,0.04436283]
[1673438282126,37.48176064,1336.8,1336.7,0.04436283]
[1673438282336,30.00121064,1336.8,1336.7,0.04436283]
[1673438283335,37.48176064,1336.8,1336.7,0.04436283]
[1673438284023,30.00121064,1336.8,1336.7,0.04436283]
[1673438284226,37.48176064,1336.8,1336.7,0.04436283]
[1673438285109,44.96231064,1336.8,1336.7,0.04436283]
[1673438285851,51.14144794,1336.8,1336.7,0.04436283]
[1673438286277,51.14344794,1336.8,1336.7,0.04436283]
[1673438286490,43.66089794,1336.8,1336.7,0.04436283]
[1673438288020,36.18034794,1336.8,1336.7,0.04436283]
[1673438288229,30.00121064,1336.8,1336.7,0.04436283]
[1673438290960,30.00121064,1336.8,1336.7,0.04079557]
[1673438291833,44.96231064,1336.8,1336.7,0.04079557]
[1673438291997,47.20073268,1336.8,1336.7,0.04079557]
[1673438292207,54.12791898,1336.8,1336.7,0.04079557]
[1673438292430,51.88949694,1336.8,1336.7,0.04079557]
[1673438293201,54.12791898,1336.8,1336.7,0.04079557]
[1673438294045,54.12402733,1336.8,1336.7,0.04079557]
[1673438295170,54.68522733,1336.8,1336.7,0.04079557]
[1673438298344,54.12402733,1336.8,1336.7,0.04079557]
[1673438299998,51.88560529,1336.8,1336.7,0.04079557]
[1673438300221,18.71910835,1336.8,1336.7,0.04079557]
[1673438300453,17.60525575,1336.8,1336.7,1.89726538]
[1673438301474,17.60525575,1336.8,1336.7,1.89722011]
[1673438301741,25.08580575,1336.8,1336.7,1.89722011]
[1673438302140,25.08580575,1336.8,1336.7,0.04079557]
[1673438302745,25.08580575,1336.8,1336.7,1.89725032]
[1673438302960,17.60525575,1336.8,1336.7,1.89725032]
[1673438303425,25.08580575,1336.8,1336.7,1.89725032]
[1673438306969,32.56635575,1336.8,1336.7,1.89725032]
[1673438307841,25.08580575,1336.8,1336.7,1.89725032]
[1673438309891,17.60525575,1336.8,1336.7,1.89725032]
[1673438311389,40.04690575,1336.8,1336.7,0.04079557]
[1673438313929,32.56635575,1336.8,1336.7,0.04079557]
[1673438315246,25.08580575,1336.8,1336.7,0.04079557]
[1673438316322,17.60525575,1336.8,1336.7,0.04079557]
[1673438316542,25.08580575,1336.8,1336.7,0.04079557]
[1673438317144,17.60525575,1336.8,1336.7,0.04079557]
[1673438318770,25.08580575,1336.8,1336.7,0.04079557]
[1673438320826,25.08580575,1336.8,1336.7,0.03765551]
[1673438321052,25.08580575,1336.8,1336.7,1.89409148]
[1673438323240,25.08580575,1336.8,1336.7,0.03765551]
[1673438324439,17.60525575,1336.8,1336.7,0.03765551]
[1673438325089,25.08580575,1336.8,1336.7,0.03765551]
[1673438326502,25.08580575,1336.8,1336.7,1.89409182]
[1673438326712,25.08580575,1336.8,1336.7,1.89409509]
[1673438327129,17.60525575,1336.8,1336.7,1.89409509]
[1673438328283,25.08580575,1336.8,1336.7,1.89409509]
[1673438331805,25.08580575,1336.8,1336.7,0.03765551]
[1673438332118,25.08580575,1336.8,1336.7,1.89409532]
[1673438332119,14.23,1336.8,1336.7,1.89409532]
[1673438332745,14.23,1336.8,1336.7,4.73226348]
[1673438332962,14.0,1336.8,1336.7,4.73226348]
[1673438336514,14.0,1336.8,1336.7,1.89409532]
[1673438340420,17.26502204,1336.9,1336.7,1.89409532]
[1673438340583,17.25502204,1336.9,1336.7,0.03765551]
[1673438340793,17.19902204,1336.9,1336.7,0.03765551]
[1673438343046,9.71867204,1336.9,1336.7,0.03765551]
[1673438343364,7.48025,1336.9,1336.7,0.03765551]
[1673438343553,7.48025,1336.9,1336.7,0.71911062]
[1673438348405,7.48025,1336.9,1336.7,0.03765551]
[1673438349586,9.71867204,1336.9,1336.7,0.03765551]
[1673438353294,7.48025,1336.9,1336.7,0.03765551]
[1673438354911,9.71867204,1336.9,1336.7,0.03765551]
[1673438356585,7.48025,1336.9,1336.7,0.03765551]
[1673438361539,7.48025,1336.9,1336.7,0.03504074]
[1673438362915,9.71867204,1336.9,1336.7,0.03504074]
[1673438363131,7.48025,1336.9,1336.7,0.03504074]
[1673438363915,9.71867204,1336.9,1336.7,0.03504074]
[1673438373808,2.23842204,1336.9,1336.7,0.03504074]
[1673438374829,2.23842204,1336.9,1336.7,3.00438021]
[1673438374965,2.23842204,1336.9,1336.7,1.14803873]
[1673438381889,2.23842204,1336.9,1336.7,5.09055631]
[1673438382115,2.23842204,1336.9,1336.7,2.96465375]
[1673438382340,2.23842204,1336.9,1336.7,2.86565375]
[1673438382654,2.23842204,1336.9,1336.7,10.34665375]
[1673438382863,2.23842204,1336.9,1336.7,10.44565375]
[1673438384014,7.44389116,1337.0,1336.8,1.85628467]
[1673438384360,2.88489116,1337.0,1336.8,2.96928266]
[1673438384577,0.64646912,1337.0,1336.9,2.5]
[1673438384734,0.08536912,1337.0,1336.9,1.85628467]
[1673438384949,0.77461884,1337.0,1336.9,2.96928266]
[1673438385204,0.68924972,1337.0,1336.9,20.92599688]
[1673438385364,0.68924972,1337.0,1336.9,21.02499688]
[1673438385570,0.68924972,1337.0,1336.9,19.91199889]
[1673438387045,0.68924972,1337.0,1336.9,12.43200889]
[1673438387920,0.68924972,1337.0,1336.9,4.95201889]
[1673438388133,0.68924972,1337.0,1336.9,4.85301889]
[1673438390739,0.68924972,1337.0,1336.9,2.99673422]
[1673438391827,0.68924972,1337.0,1336.8,10.36288389]
[1673438392013,0.68924972,1337.0,1336.8,7.57919]
[1673438392234,0.68924972,1337.0,1336.8,8.69218799]
[1673438392616,0.68924972,1337.0,1336.8,7.57919]
[1673438393036,0.68924972,1337.0,1336.8,8.69218799]
[1673438393400,0.68924972,1337.0,1336.9,0.8692188]
[1673438393622,0.68924972,1337.0,1336.9,2.72527769]
[1673438394765,0.68924972,1337.0,1336.9,10.20526769]
[1673438395019,0.68924972,1337.0,1336.9,10.30426769]
[1673438395374,1e-08,1337.0,1336.9,10.30426769]
[1673438396011,8.3086,1337.1,1336.9,10.30426769]
[1673438396220,38.3450958,1337.2,1336.9,8.4482088]
[1673438396432,38.2790958,1337.2,1336.9,8.4482088]
[1673438398341,38.2790958,1337.2,1336.9,15.9281988]
[1673438398559,8.4190958,1337.2,1336.9,15.9281988]
[1673438398771,8.4190958,1337.2,1336.9,8.4482088]
[1673438399370,8.4190958,1337.2,1337.0,0.84482088]
[1673438400447,25.61421784,1337.2,1337.0,0.84482088]
[1673438400659,25.61421784,1337.2,1336.9,0.8692188]
[1673438401397,4.1800958,1337.1,1336.9,0.8692188]
[1673438401923,3.79766064,1337.0,1336.8,7.57916]
[1673438402238,19.4541,1336.8,1336.7,1.14803873]
[1673438402401,46.50058592,1336.8,1336.7,0.03504074]
[1673438402611,43.13205644,1336.8,1336.7,0.03504074]
[1673438402815,53.52599353,1336.8,1336.7,0.03504074]
[1673438403078,55.51610132,1336.8,1336.7,0.03504074]
[1673438403601,48.22127604,1336.8,1336.7,0.03504074]
[1673438403793,40.74072604,1336.8,1336.7,0.03504074]
[1673438403979,39.50070598,1336.8,1336.7,0.03504074]
[1673438404191,50.91098546,1336.8,1336.7,0.03504074]
[1673438404461,63.39295585,1336.8,1336.6,0.04766438]
[1673438404605,44.72418591,1336.7,1336.6,0.04766438]
[1673438404814,6.993,1336.6,1336.5,0.0651923]
[1673438405079,46.20456773,1336.6,1336.5,0.0651923]
[1673438405261,40.21745727,1336.6,1336.5,0.0651923]
[1673438405469,0.6113,1336.6,1336.5,0.0651923]
[1673438405698,29.52462,1336.6,1336.5,0.0651923]
[1673438405916,45.95148312,1336.6,1336.5,0.0651923]
[1673438406808,48.61112846,1336.6,1336.5,0.0651923]
[1673438407177,34.42412,1336.4,1336.3,0.05155069]
[1673438407392,34.42412,1336.4,1336.1,0.07582964]
[1673438407393,4.493,1336.2,1336.1,0.07582964]
[1673438407562,56.38599012,1336.2,1336.1,0.07582964]
[1673438407755,63.38114932,1336.2,1336.1,0.07582964]
[1673438408194,59.45141984,1336.2,1336.1,0.07582964]
[1673438408609,62.81841984,1336.2,1336.1,0.07582964]
[1673438409046,62.79849302,1336.2,1336.1,0.07582964]
[1673438409886,6.97307318,1336.1,1336.0,0.0722377]
[1673438410066,38.08459091,1336.1,1336.0,0.0722377]
[1673438410271,45.56905091,1336.1,1336.0,0.0722377]
[1673438410961,44.64813864,1336.1,1336.0,0.0722377]
[1673438411266,42.14813864,1336.1,1336.0,0.0722377]
[1673438411690,38.21840916,1336.1,1336.0,0.0722377]
[1673438412016,42.14813864,1336.1,1336.0,0.0722377]
[1673438412320,49.63259864,1336.1,1335.7,0.07303521]
[1673438412482,34.41767318,1335.8,1335.7,0.07303521]
[1673438412695,34.46767318,1335.8,1335.7,0.07303521]
[1673438412930,27.21152318,1335.8,1335.7,0.07303521]
[1673438413271,0.28,1335.8,1335.7,0.07303521]
[1673438413480,0.23,1335.8,1335.7,0.07303521]
[1673438413806,15.2023,1335.8,1335.7,0.07303521]
[1673438413959,15.2523,1335.8,1335.7,0.07303521]
[1673438414409,12.62920285,1335.8,1335.7,0.07303521]
[1673438415327,10.2993387,1335.8,1335.7,0.07303521]
[1673438416060,2.8131887,1335.8,1335.7,0.07303521]
[1673438416270,2.7631887,1335.8,1335.7,0.07303521]
[1673438416908,17.9654887,1335.8,1335.7,0.07303521]
[1673438417119,22.5084887,1335.8,1335.7,0.07303521]
[1673438417332,24.1784887,1335.8,1335.7,0.07303521]
[1673438419689,24.17518998,1335.8,1335.7,0.07303521]
[1673438421467,31.14053362,1335.8,1335.7,0.07303521]
[1673438421652,16.16823362,1335.8,1335.7,0.07303521]
[1673438421831,9.20288998,1335.8,1335.7,0.07303521]
[1673438422044,26.67518998,1335.8,1335.7,0.07303521]
[1673438422329,19.18903998,1335.8,1335.7,0.07303521]
[1673438422471,26.67518998,1335.8,1335.7,0.07303521]
[1673438422863,20.87403998,1335.8,1335.7,0.07303521]
[1673438423140,19.20403998,1335.8,1335.7,0.07303521]
[1673438423354,45.59304073,1335.8,1335.7,0.07303521]
[1673438423518,54.76787846,1335.8,1335.7,0.07303521]
[1673438423973,48.33027512,1335.8,1335.7,0.07303521]
[1673438424185,45.36153835,1335.8,1335.7,0.07303521]
[1673438424406,43.67653835,1335.8,1335.7,0.07303521]
[1673438425211,42.56186066,1335.8,1335.7,0.07303521]
[1673438425836,46.49094408,1335.8,1335.7,0.07303521]
[1673438426083,42.56186066,1335.8,1335.7,0.07303521]
[1673438426290,47.56821473,1335.8,1335.7,0.07303521]
[1673438427240,51.49729815,1335.8,1335.7,0.07303521]
[1673438427420,47.56821473,1335.8,1335.7,0.07303521]
[1673438427823,51.49729815,1335.8,1335.7,0.07303521]
[1673438428040,53.18229815,1335.8,1335.7,0.07303521]
[1673438428491,49.81229815,1335.8,1335.7,0.07303521]
[1673438429361,54.85529815,1335.8,1335.7,0.07303521]
[1673438430087,47.36914815,1335.8,1335.7,0.07303521]
[1673438430396,50.07579837,1335.8,1335.7,0.07303521]
[1673438431007,54.00488179,1335.8,1335.7,0.07303521]
[1673438431201,50.07579837,1335.8,1335.7,0.07303521]
[1673438432009,54.00488179,1335.8,1335.7,0.07303521]
[1673438432311,55.68988179,1335.8,1335.7,0.07303521]
[1673438432459,66.2285173,1335.8,1335.7,0.07303521]
[1673438435392,74.3579173,1335.8,1335.7,0.07303521]
[1673438436451,74.3579173,1335.8,1335.7,5.21e-06]
[1673438436690,74.3579173,1335.8,1335.6,0.0763718]
[1673438436893,44.33957406,1335.7,1335.6,0.0763718]
[1673438437103,46.64098302,1335.7,1335.6,0.0763718]
[1673438437313,47.39107075,1335.7,1335.6,0.0763718]
[1673438438126,47.38607075,1335.7,1335.6,0.0763718]
[1673438439219,38.97510358,1335.7,1335.6,0.0763718]
[1673438439431,36.26998733,1335.7,1335.6,0.0763718]
[1673438441069,41.88524375,1335.7,1335.6,0.0763718]
[1673438441283,44.88524375,1335.7,1335.6,0.0763718]
[1673438441533,40.95598733,1335.7,1335.6,0.0763718]
[1673438441863,44.88524375,1335.7,1335.6,0.0763718]
[1673438442033,40.95598733,1335.7,1335.6,0.0763718]
[1673438442232,44.88524375,1335.7,1335.6,0.0763718]
[1673438442438,51.62186602,1335.7,1335.4,0.08818801]
[1673438442658,20.182,1335.5,1335.4,0.08818801]
[1673438442976,54.21098064,1335.5,1335.4,0.08818801]
[1673438446560,54.96106837,1335.5,1335.4,0.08818801]
[1673438446770,58.89032479,1335.5,1335.4,0.08818801]
[1673438446980,49.15223837,1335.5,1335.4,0.08818801]
[1673438447221,37.02739938,1335.5,1335.4,0.08818801]
[1673438447441,29.53956938,1335.5,1335.4,0.08818801]
[1673438447758,28.97776938,1335.5,1335.4,0.08818801]
[1673438447972,43.95342938,1335.5,1335.4,0.08818801]
[1673438448398,51.44125938,1335.5,1335.4,0.08818801]
[1673438448563,50.69117165,1335.5,1335.4,0.08818801]
[1673438448987,35.71551165,1335.5,1335.4,0.08818801]
[1673438449244,32.72449064,1335.5,1335.4,0.08818801]
[1673438449545,40.21232064,1335.5,1335.4,0.08818801]
[1673438450131,32.72449064,1335.5,1335.4,0.08818801]
[1673438451195,47.70015064,1335.5,1335.4,0.08818801]
[1673438452138,40.21232064,1335.5,1335.4,0.08818801]
[1673438452331,55.01456036,1335.5,1335.4,0.08818801]
[1673438452539,47.52673036,1335.5,1335.4,0.08818801]
[1673438453226,25.23666064,1335.5,1335.4,0.08818801]
[1673438453386,40.21232064,1335.5,1335.4,0.08818801]
[1673438454539,47.70015064,1335.5,1335.4,0.08818801]
[1673438455204,40.21232064,1335.5,1335.4,0.08818801]
[1673438455599,51.62940706,1335.5,1335.4,0.08818801]
[1673438455812,55.23878615,1335.5,1335.4,0.08818801]
[1673438456229,59.16804257,1335.5,1335.4,0.08818801]
[1673438456440,58.80058615,1335.5,1335.4,0.08818801]
[1673438457518,55.80058615,1335.5,1335.4,0.08818801]
[1673438457716,58.80058615,1335.5,1335.4,0.08818801]
[1673438458250,62.72984257,1335.5,1335.4,0.08818801]
[1673438459185,58.80058615,1335.5,1335.4,0.08818801]
[1673438459527,62.72984257,1335.5,1335.4,0.08818801]
[1673438460951,59.72984257,1335.5,1335.4,0.08818801]
[1673438461164,62.72984257,1335.5,1335.4,0.08818801]
[1673438461685,64.40604064,1335.5,1335.4,0.08818801]
[1673438462104,62.72984257,1335.5,1335.4,0.08818801]
[1673438463398,64.40604064,1335.5,1335.4,0.08818801]
[1673438463615,62.72984257,1335.5,1335.4,0.08818801]
[1673438465415,64.40604064,1335.5,1335.4,0.08818801]
[1673438466543,62.72984257,1335.5,1335.4,0.08818801]
[1673438466762,64.40604064,1335.5,1335.4,0.08818801]
[1673438467318,64.40604064,1335.5,1335.4,0.08578206]
[1673438468679,69.40604064,1335.5,1335.4,0.08578206]
[1673438470897,71.08204064,1335.5,1335.4,0.08578206]
[1673438471414,73.3169714,1335.5,1335.4,0.08578206]
[1673438471785,71.64077333,1335.5,1335.4,0.08578206]
[1673438471996,72.19950601,1335.5,1335.4,0.08578206]
[1673438472890,74.44021977,1335.5,1335.4,0.08578206]
[1673438473468,71.64655633,1335.5,1335.4,0.08578206]
[1673438474140,74.44021977,1335.5,1335.4,0.08578206]
[1673438474308,71.64655633,1335.5,1335.4,0.08578206]
[1673438475150,73.32719923,1335.5,1335.4,0.08578206]
[1673438475363,71.64655633,1335.5,1335.4,0.08578206]
[1673438475798,73.32729126,1335.5,1335.4,0.08578206]
[1673438476211,73.32729379,1335.5,1335.4,0.08578206]
[1673438476463,71.64655633,1335.5,1335.4,0.08578206]
[1673438476628,73.32729208,1335.5,1335.4,0.08578206]
[1673438476951,79.53180247,1335.5,1335.4,0.08578206]
[1673438477164,82.32546591,1335.5,1335.4,0.08578206]
[1673438477572,82.32746591,1335.5,1335.4,0.08578206]
[1673438477828,82.32546591,1335.5,1335.4,0.08578206]
[1673438478203,83.07555364,1335.5,1335.4,0.08578206]
[1673438478673,80.2818902,1335.5,1335.4,0.08578206]
[1673438479044,83.07555364,1335.5,1335.4,0.08578206]
[1673438482306,75.1903075,1335.5,1335.4,0.08578206]
[1673438483240,75.1923075,1335.5,1335.4,0.08578206]
[1673438483350,69.02325108,1335.5,1335.4,0.08578206]
[1673438483679,57.99166991,1335.5,1335.4,0.08578206]
[1673438483895,65.47949991,1335.5,1335.4,0.08578206]
[1673438484331,67.16108208,1335.5,1335.4,0.08578206]
[1673438484946,62.16108208,1335.5,1335.4,0.08578206]
[1673438485395,59.92036832,1335.5,1335.4,0.08578206]
[1673438486099,64.92036832,1335.5,1335.4,0.08578206]
[1673438486850,67.16108208,1335.5,1335.4,0.08578206]
[1673438488518,65.47949991,1335.5,1335.4,0.08578206]
[1673438489067,65.47949991,1335.5,1335.4,0.08362975]
[1673438489461,67.16142241,1335.5,1335.4,0.08362975]
[1673438489860,67.16142753,1335.5,1335.4,0.08362975]
[1673438490075,67.16142585,1335.5,1335.4,0.08362975]
[1673438490319,67.16142642,1335.5,1335.4,0.08362975]
[1673438491338,59.67359642,1335.5,1335.4,0.08362975]
[1673438491543,64.92071266,1335.5,1335.4,0.08362975]
[1673438491771,32.25230091,1335.5,1335.4,0.08362975]
[1673438491981,30.01158715,1335.5,1335.4,1.24362975]
[1673438492298,23.32966064,1335.5,1335.4,1.24362975]
[1673438492511,23.32966064,1335.5,1335.4,0.08362975]
[1673438493327,19.532,1335.5,1335.4,0.08362975]
[1673438493995,19.762,1335.5,1335.4,0.08362975]
[1673438494190,19.762,1335.5,1335.4,1.94183298]
[1673438494748,19.762,1335.5,1335.4,0.08362975]
[1673438495277,21.44392651,1335.5,1335.4,0.08362975]
[1673438495467,28.93175651,1335.5,1335.4,0.08362975]
[1673438496065,39.58648194,1335.5,1335.4,0.08362975]
[1673438496276,52.88021543,1335.5,1335.4,0.08362975]
[1673438496856,54.56258487,1335.5,1335.4,0.08362975]
[1673438498950,52.88021543,1335.5,1335.4,0.08362975]
[1673438499270,54.5627638,1335.5,1335.4,0.08362975]
[1673438501628,52.88021543,1335.5,1335.4,0.08362975]
[1673438501844,54.56284798,1335.5,1335.4,0.08362975]
[1673438506310,54.56268111,1335.5,1335.4,0.08362975]
[1673438506516,52.88021543,1335.5,1335.4,0.08362975]
[1673438506744,54.56270345,1335.5,1335.4,0.08362975]
[1673438508249,47.07487345,1335.5,1335.4,0.08362975]
[1673438509132,44.83415969,1335.5,1335.4,0.08362975]
[1673438509349,52.32198969,1335.5,1335.4,0.08362975]
[1673438509733,44.83415969,1335.5,1335.4,0.08362975]
[1673438509983,40.21780866,1335.5,1335.4,0.08362975]
[1673438512300,31.04749064,1335.5,1335.4,0.08362975]
[1673438512473,47.70563866,1335.5,1335.4,0.08362975]
[1673438512670,47.70563866,1335.5,1335.4,0.0804292]
[1673438513091,48.2638644,1335.5,1335.4,0.0804292]
[1673438513354,51.05752784,1335.5,1335.4,0.0804292]
[1673438513532,55.0238941,1335.5,1335.4,0.0804292]
[1673438513744,57.81755754,1335.5,1335.4,0.0804292]
[1673438514354,55.0238941,1335.5,1335.4,0.0804292]
[1673438514816,56.70643799,1335.5,1335.4,0.0804292]
[1673438515136,63.64215052,1335.5,1335.4,0.0804292]
[1673438515302,59.7128941,1335.5,1335.4,0.0804292]
[1673438516052,61.39551635,1335.5,1335.4,0.0804292]
[1673438517193,59.7128941,1335.5,1335.4,0.0804292]
[1673438517406,66.39558471,1335.5,1335.4,0.0804292]
[1673438517610,64.7128941,1335.5,1335.4,0.0804292]
[1673438518244,66.39550168,1335.5,1335.4,0.0804292]
[1673438520240,43.93201168,1335.5,1335.4,0.0804292]
[1673438520460,41.69129792,1335.5,1335.4,0.0804292]
[1673438520701,33.24226822,1335.5,1335.4,0.0804292]
[1673438522237,28.24226822,1335.5,1335.4,0.0804292]
[1673438522454,35.73009822,1335.5,1335.4,0.0804292]
[1673438522819,43.21792822,1335.5,1335.4,0.0804292]
[1673438524655,0.016,1335.6,1335.5,0.94299454]